fUST/lending_fUST_20260223
["ID","MTS","AMOUNT","RATE_DAILY","PERIOD"]
[406391524,1771861753768,-270.66,9.7e-05,2]
[406391525,1771861753804,-270.66,9.7e-05,2]
[406391526,1771861753837,-270.66,9.7e-05,2]
[406391527,1771861753873,-270.66,9.7e-05,2]
[406391528,1771861754003,-270.66,9.7e-05,2]
[406391529,1771861754046,-270.66,9.8e-05,2]
[406391530,1771861754080,-270.66,9.8e-05,2]
[406391531,1771861754113,-270.66,9.8e-05,2]
[406391532,1771861754144,-270.66,9.8e-05,2]
[406391533,1771861754174,-270.66,9.8e-05,2]
[406391534,1771861754202,-270.66,9.8e-05,2]
[406391535,1771861754229,-151.0,9.8e-05,2]
[406391536,1771861754259,-270.66,9.9e-05,2]
[406391537,1771861754290,-270.66,9.9e-05,2]
[406391538,1771861754318,-270.66,9.9e-05,2]
[406391539,1771861754349,-270.66,9.9e-05,2]
[406391540,1771861754379,-270.66,9.9e-05,2]
[406391541,1771861754407,-500.0,9.973e-05,2]
[406391542,1771861754437,-270.66,0.0001,2]
[406391543,1771861754467,-270.66,0.0001,2]
[406391544,1771861754496,-270.66,0.0001,2]
[406391545,1771861754525,-270.66,0.0001,2]
[406391546,1771861754560,-270.66,0.0001,2]
[406391547,1771861754588,-270.66,0.000101,2]
[406391548,1771861754616,-270.66,0.000101,2]
[406391549,1771861754644,-270.66,0.000101,2]
[406391550,1771861754684,-270.66,0.000101,2]
[406391551,1771861754718,-270.66,0.000101,2]
[406391552,1771861754749,-270.66,0.000102,2]
[406391553,1771861754779,-270.66,0.000102,2]
[406391554,1771861754808,-270.66,0.000102,2]
[406391555,1771861754838,-270.66,0.000102,2]
[406391556,1771861754866,-270.66,0.000102,2]
[406391557,1771861754894,-16336.89884456,0.0001024,2]
[406391558,1771861754924,-316.70727423,0.00010247,2]
[406391559,1771861754954,-270.66,0.000103,2]
[406391560,1771861754986,-270.66,0.000103,2]
[406391561,1771861755021,-270.66,0.000103,2]
[406391562,1771861755056,-270.66,0.000103,2]
[406391563,1771861755091,-270.66,0.000103,2]
[406391564,1771861755127,-270.66,0.000104,2]
[406391565,1771861755159,-270.66,0.000104,2]
[406391566,1771861755194,-270.66,0.000104,2]
[406391567,1771861755228,-270.66,0.000104,2]
[406391568,1771861755260,-270.66,0.000104,2]
[406391569,1771861755291,-270.66,0.000104,2]
[406391570,1771861755322,-1680.0,0.00010559,2]
[406391571,1771861755352,-420.0,0.00010667,2]
[406391572,1771861755382,-420.0,0.00010667,2]
[406391573,1771861755411,-157.30747843,0.000115,2]
[406391574,1771861755442,-1070.39161227,0.000115,2]
[406391575,1771861755473,-1070.39161227,0.000115,2]
[406391576,1771861755504,-160.31790373,0.000115,2]
[406391577,1771861755533,-1070.39161227,0.00011506,2]
[406391578,1771861755563,-157.30747843,0.0001151,2]
[406391579,1771861755592,-1136.49780765,0.00011512,2]
[406391580,1771861755622,-1070.39161227,0.00011525,2]
[406391581,1771861755653,-157.30747843,0.0001154,2]
[406391582,1771861755683,-151.0,0.0001154,2]
[406391583,1771861755715,-1070.39161227,0.00011556,2]
[406391584,1771861755746,-157.30747843,0.00011591,2]
[406391585,1771861755776,-1070.39161227,0.000116,2]
[406391586,1771861755806,-2351.0,0.00011615,2]
[406391587,1771861755836,-160.31790373,0.00011635,2]
[406391588,1771861755867,-177.0,0.00011649,2]
[406391589,1771861755896,-1070.39161227,0.00011656,2]
[406391590,1771861755925,-157.30747843,0.00011661,2]
[406391591,1771861755956,-1070.39161227,0.00011724,2]
[406391592,1771861755984,-245.0,0.00011733,2]
[406391593,1771861756017,-193.0,0.00011733,2]
[406391594,1771861756049,-157.30747843,0.00011752,2]
[406391595,1771861756079,-993.44815421,0.00011805,2]
[406391596,1771861759103,-150.0,9.695e-05,2]
[406391597,1771861759126,-177.0,0.00011695,2]
[406391598,1771861759147,-76.94345806,0.00011805,2]
[406391599,1771861759167,-157.30747843,0.00011863,2]
[406391600,1771861759188,-1070.39161227,0.00011898,2]
[406391601,1771861759210,-5000.0,0.00011962,2]
[406391602,1771861759233,-157.30747843,0.00011994,2]
[406391603,1771861759254,-1070.39161227,0.00012004,2]
[406391604,1771861759274,-160.31790373,0.00012042,2]
[406391605,1771861759294,-1070.39161227,0.00012123,2]
[406391606,1771861759314,-157.30747843,0.00012145,2]
[406391607,1771861759333,-1070.39161227,0.00012253,2]
[406391608,1771861759354,-157.30747843,0.00012317,2]
[406391609,1771861759373,-5000.0,0.00012328,2]
[406391610,1771861759393,-165.122002,0.00012328,2]
[406391611,1771861759414,-283.75,0.00012329,2]
[406391612,1771861759434,-3154.89,0.00012329,2]
[406391613,1771861759552,-2629.08,0.00012329,2]
[406391614,1771861759573,-2190.9,0.00012329,2]
[406391615,1771861759593,-1825.75,0.00012329,2]
[406391616,1771861759613,-1521.46,0.00012329,2]
[406391617,1771861759634,-1267.88,0.00012329,2]
[406391618,1771861759654,-1056.57,0.00012329,2]
[406391619,1771861759674,-880.47,0.00012329,2]
[406391620,1771861759694,-733.73,0.00012329,2]
[406391621,1771861759719,-611.44,0.00012329,2]
[406391622,1771861759738,-509.53,0.00012329,2]
[406391623,1771861759758,-424.61,0.00012329,2]
[406391624,1771861759779,-353.84,0.00012329,2]
[406391625,1771861759799,-294.87,0.00012329,2]
[406391626,1771861759822,-245.72,0.00012329,2]
[406391627,1771861759851,-204.77,0.00012329,2]
[406391628,1771861759871,-170.64,0.00012329,2]
[406391629,1771861759890,-1070.39161227,0.00012396,2]
[406391630,1771861759912,-157.30747843,0.00012508,2]
[406391631,1771861759935,-1070.39161227,0.00012552,2]
[406391632,1771861759959,-1259.21535658,0.0001271,2]
[406391633,1771861759981,-160.47822164,0.00012719,2]
[406391634,1771861760003,-157.4647859,0.0001272,2]
[406391635,1771861760026,-1071.46200388,0.0001272,2]
[406391636,1771861760052,-3292.0,0.00012776,2]
[406391637,1771861760071,-250.84133324,0.00012831,2]
[406391638,1771861760093,-172.50082896,0.00013273,2]
[406391639,1771861760113,-544.08732453,0.00013273,2]
[406391640,1771861760132,-500.0,0.00013273,2]
[406391641,1771861760151,-500.0,0.00013273,2]
[406391642,1771861760171,-500.0,0.00013273,2]
[406391643,1771861760190,-500.0,0.00013273,2]
[406391644,1771861760214,-500.0,0.00013273,2]
[406391645,1771861760237,-500.0,0.00013273,2]
[406391646,1771861760259,-500.0,0.00013273,2]
[406391647,1771861760281,-500.0,0.00013273,2]
[406391648,1771861760307,-466.65563313,0.00013273,2]
[406391649,1771861762107,-853.24,0.00012329,2]
[406391650,1771861762132,-33.34436687,0.00013273,2]
[406391651,1771861762155,-500.0,0.00013273,2]
[406391652,1771861762175,-500.0,0.00013273,2]
[406391653,1771861762196,-500.0,0.00013273,2]
[406391654,1771861762216,-500.0,0.00013273,2]
[406391655,1771861762239,-500.0,0.00013273,2]
[406391656,1771861762259,-500.0,0.00013273,2]
[406391657,1771861762279,-500.0,0.00013273,2]
[406391658,1771861762298,-500.0,0.00013273,2]
[406391659,1771861762320,-500.0,0.00013273,2]
[406391660,1771861762343,-500.0,0.00013273,2]
[406391661,1771861762362,-500.0,0.00013273,2]
[406391662,1771861762383,-204.68657708,0.00013673,2]
[406391663,1771861762403,-204.0,0.00013695,2]
[406391664,1771861762423,-348.99250635,0.00013698,2]
[406391665,1771861762444,-500.0,0.00013698,2]
[406391666,1771861762465,-500.0,0.00013698,2]
[406391667,1771861762484,-500.0,0.00013698,2]
[406391668,1771861762504,-887.591238,0.00013699,2]
[406391669,1771861762523,-2998.3914033,0.00013699,2]
[406391670,1771861762543,-176.460456,0.00013699,2]
[406391671,1771861762562,-205.32873319,0.00013699,2]
[406391672,1771861762581,-500.0,0.00013699,2]
[406391673,1771861762601,-500.0,0.00013699,2]
[406391674,1771861762620,-500.0,0.00013699,2]
[406391675,1771861762639,-500.0,0.00013699,2]
[406391676,1771861762658,-500.0,0.00013699,2]
[406391677,1771861762678,-500.0,0.00013699,2]
[406391678,1771861762699,-500.0,0.00013699,2]
[406391679,1771861762719,-242.98688795,0.00013699,2]
[406391680,1771861762738,-448.09189083,0.00013699,2]
[406391681,1771861762757,-150.0,0.00013699,2]
[406391682,1771861762778,-500.0,0.00013699,2]
[406391683,1771861762798,-456.35050886,0.00013699,2]
[406391684,1771861762818,-500.0,0.00013699,2]
[406391685,1771861762838,-500.0,0.00013699,2]
[406391686,1771861762857,-555.8884954,0.00013699,2]
[406391687,1771861762877,-500.0,0.00013699,2]
[406391688,1771861762897,-500.0,0.00013699,2]
[406391689,1771861762917,-500.0,0.00013699,2]
[406391690,1771861762937,-500.0,0.00013699,2]
[406391691,1771861762958,-500.0,0.00013699,2]
[406391692,1771861762978,-500.0,0.00013699,2]
[406391693,1771861763000,-500.0,0.00013699,2]
[406391694,1771861763021,-500.0,0.00013699,2]
[406391695,1771861763044,-500.0,0.00013699,2]
[406391696,1771861763064,-620.71408323,0.00013699,2]
[406391697,1771861763083,-500.0,0.00013699,2]
[406391698,1771861763102,-500.0,0.00013699,2]
[406391699,1771861763124,-500.0,0.00013699,2]
[406391700,1771861763144,-500.0,0.00013699,2]
[406391701,1771861763167,-528.39853105,0.00013699,2]
[406391702,1771861763186,-500.0,0.00013699,2]
[406391703,1771861763208,-500.0,0.00013699,2]
[406391704,1771861763228,-150.0,0.000137,2]
[406391705,1771861763248,-151.0,0.00013811,2]
[406391706,1771861763275,-151.0,0.00013811,2]
[406391707,1771861763297,-151.0,0.00013811,2]
[406391708,1771861763407,-151.0,0.00013811,2]
[406391709,1771861763431,-151.0,0.00013811,2]
[406391710,1771861763452,-225.69273646,0.00013811,2]
[406391711,1771861763475,-500.0,0.00013819,2]
[406391712,1771861763497,-500.0,0.0001382,2]
[406391713,1771861763519,-1000.0,0.00013821,2]
[406391714,1771861763539,-1000.0,0.00013821,2]
[406391715,1771861763559,-1138.26626757,0.00013821,2]
[406391716,1771861763580,-1000.0,0.00013821,2]
[406391717,1771861763602,-1000.0,0.00013821,2]
[406391718,1771861763623,-1000.0,0.00013821,2]
[406391719,1771861763644,-1000.0,0.00013821,2]
[406391720,1771861763664,-1000.0,0.00013821,2]
[406391721,1771861763683,-1000.0,0.00013821,2]
[406391722,1771861763703,-1000.0,0.00013821,2]
[406391723,1771861763723,-1000.0,0.00013821,2]
[406391724,1771861763744,-1000.0,0.00013821,2]
[406391725,1771861763765,-1000.0,0.00013821,2]
[406391726,1771861763784,-1000.0,0.00013821,2]
[406391727,1771861763805,-1000.0,0.00013821,2]
[406391728,1771861763826,-1000.0,0.00013821,2]
[406391729,1771861763846,-1000.0,0.00013821,2]
[406391730,1771861763868,-1000.0,0.00013821,2]
[406391731,1771861763889,-1000.0,0.00013821,2]
[406391732,1771861763913,-183.89499468,0.00013821,2]
[406391733,1771861763933,-5000.0,0.00014,3]
[406391734,1771861763964,-4609.0,0.00014054,2]
[406391735,1771861763988,-150.0,0.000142,2]
[406391736,1771861764010,-500.0,0.00014246,2]
[406391737,1771861764031,-1000.0,0.00014247,2]
[406391738,1771861764057,-1000.0,0.00014247,2]
[406391739,1771861764079,-1000.0,0.00014247,2]
[406391740,1771861764100,-1000.0,0.00014247,2]
[406391741,1771861764123,-1000.0,0.00014247,2]
[406391742,1771861764143,-453.58112453,0.00014247,2]
[406391743,1771861764163,-1000.0,0.00014247,2]
[406391744,1771861764184,-192.62879521,0.00014247,2]
[406391745,1771861764206,-250.0,0.00014247,2]
[406391746,1771861764227,-1000.0,0.00014247,2]
[406391747,1771861764247,-1000.0,0.00014247,2]
[406391748,1771861764269,-1000.0,0.00014247,2]
[406391749,1771861764291,-1000.0,0.00014247,2]
[406391750,1771861764310,-249.09719145,0.00014247,2]
[406391751,1771861764330,-335.32174632,0.00014247,2]
[406391752,1771861764353,-1000.0,0.00014247,2]
[406391753,1771861764383,-1000.0,0.00014247,2]
[406391754,1771861764404,-720.98878843,0.00014247,2]
[406391755,1771861764426,-732.62213277,0.00014247,2]
[406391756,1771861764448,-855.2573341,0.00014247,2]
[406391757,1771861764485,-1000.0,0.00014247,2]
[406391758,1771861764505,-1000.0,0.00014247,2]
[406391759,1771861764529,-1000.0,0.00014247,2]
[406391760,1771861764552,-1000.0,0.00014247,2]
[406391761,1771861764571,-684.82155238,0.00014247,2]
[406391762,1771861764588,-1000.0,0.00014247,2]
[406391763,1771861764608,-734.62,0.00014268,2]
[406391764,1771861764627,-151.91187899,0.00014368,2]
[406391765,1771861764647,-540.80390294,0.00014368,2]
[406391766,1771861764668,-718.2106455,0.00014368,2]
[406391767,1771861764689,-1500.0,0.00014368,2]
[406391768,1771861764715,-1500.0,0.00014368,2]
[406391769,1771861764736,-1023.39813534,0.00014368,2]
[406391770,1771861764755,-1500.0,0.00014368,2]
[406391771,1771861764775,-573.74577789,0.00014368,2]
[406391772,1771861764795,-1500.0,0.00014368,2]
[406391773,1771861764814,-710.04768775,0.00014368,2]
[406391774,1771861764833,-1500.0,0.00014368,2]
[406391775,1771861764853,-1500.0,0.00014368,2]
[406391776,1771861764873,-1500.0,0.00014368,2]
[406391778,1771861764894,-1500.0,0.00014368,2]
[406391779,1771861764919,-1500.0,0.00014368,2]
[406391781,1771861764939,-1500.0,0.00014368,2]
[406391782,1771861764958,-1500.0,0.00014368,2]
[406391783,1771861764978,-1500.0,0.00014368,2]
[406391785,1771861764998,-500.0,0.00014794,2]
[406391786,1771861765020,-649.03909534,0.00014795,2]
[406391788,1771861765047,-1500.0,0.00014795,2]
[406391789,1771861765067,-1500.0,0.00014795,2]
[406391791,1771861765089,-1500.0,0.00014795,2]
[406391792,1771861765109,-1500.0,0.00014795,2]
[406391793,1771861765128,-1500.0,0.00014795,2]
[406391794,1771861765148,-403.11900238,0.00014795,2]
[406391795,1771861765168,-789.11800959,0.00014795,2]
[406391796,1771861765187,-1543.75593635,0.00014795,2]
[406391797,1771861765207,-1500.0,0.00014795,2]
[406391798,1771861765226,-1500.0,0.00014795,2]
[406391799,1771861765246,-1338.52098207,0.00014795,2]
[406391800,1771861765266,-1500.0,0.00014795,2]
[406391801,1771861765287,-1500.0,0.00014795,2]
[406391802,1771861765306,-1500.0,0.00014795,2]
[406391803,1771861765326,-1500.0,0.00014795,2]
[406391804,1771861765345,-1500.0,0.00014795,2]
[406391805,1771861765364,-279.60322634,0.00014795,2]
[406391806,1771861765384,-648.38,0.00014916,2]
[406391807,1771861765405,-2000.0,0.00014916,2]
[406391808,1771861765425,-2000.0,0.00014916,2]
[406391809,1771861765445,-2000.0,0.00014916,2]
[406391810,1771861765471,-2000.0,0.00014916,2]
[406391811,1771861765493,-2000.0,0.00014916,2]
[406391812,1771861765514,-2000.0,0.00014916,2]
[406391813,1771861765533,-2120.77749541,0.00014916,2]
[406391814,1771861765553,-1229.43414158,0.00014916,2]
[406391816,1771861765572,-1320.82047287,0.00014916,2]
[406391817,1771861765592,-2000.0,0.00014916,2]
[406391818,1771861765703,-2000.0,0.00014916,2]
[406391819,1771861765724,-2000.0,0.00014916,2]
[406391820,1771861765743,-5000.0,0.00015,2]
[406391822,1771861765762,-202.38333379,0.00015068,2]
[406391823,1771861765783,-2000.0,0.00015342,2]
[406391824,1771861765816,-867.994216,0.00015342,2]
[406391825,1771861765836,-2000.0,0.00015342,2]
[406391826,1771861765856,-2000.0,0.00015342,2]
[406391827,1771861765877,-1446.24644431,0.00015342,2]
[406391828,1771861765900,-2097.98038219,0.00015342,2]
[406391829,1771861765921,-511.40319057,0.00015342,2]
[406391830,1771861765940,-695.33133116,0.00015342,2]
[406391831,1771861765960,-2000.0,0.00015342,2]
[406391832,1771861765979,-1656.37293441,0.00015342,2]
[406391833,1771861765999,-2000.0,0.00015342,2]
[406391834,1771861766019,-1756.7839229,0.00015342,2]
[406391835,1771861766043,-4281.0,0.00015459,2]
[406391836,1771861766062,-2500.0,0.00015464,2]
[406391837,1771861766084,-2500.0,0.00015464,2]
[406391838,1771861766105,-1887.03867066,0.00015464,2]
[406391839,1771861766276,-748.97646104,0.00014147,2]
[406391840,1771861766295,-612.96132934,0.00015464,2]
[406391841,1771861766315,-2500.0,0.00015464,2]
[406391842,1771861766333,-2500.0,0.00015464,2]
[406391843,1771861766354,-329.84993741,0.00015464,2]
[406391844,1771861766372,-2500.0,0.00015464,2]
[406391845,1771861766391,-2500.0,0.00015464,2]
[406391846,1771861766413,-1886.81625403,0.00015464,2]
[406391847,1771861766434,-231.0,0.00015695,2]
[406391848,1771861766454,-2000.0,0.000157,2]
[406391849,1771861766473,-686.059485,0.000157,2]
[406391850,1771861766493,-1631.88289015,0.000157,2]
[406391851,1771861766513,-2000.0,0.000158,2]
[406391852,1771861766531,-2500.0,0.0001589,2]
[406391853,1771861766550,-1303.38474924,0.0001589,2]
[406391854,1771861766569,-2500.0,0.0001589,2]
[406391855,1771861766590,-2500.0,0.0001589,2]
[406391856,1771861766610,-2000.0,0.000159,2]
[406391857,1771861766630,-2000.0,0.00016,2]
[406391858,1771861766652,-354.55318925,0.00016012,2]
[406391859,1771861766675,-3000.0,0.00016012,2]
[406391860,1771861766695,-2115.79185446,0.00016012,2]
[406391861,1771861766715,-3000.0,0.00016012,2]
[406391862,1771861766738,-2000.0,0.000161,2]
[406391863,1771861766763,-2000.0,0.000162,2]
[406391864,1771861766795,-2000.0,0.000163,2]
[406391865,1771861766816,-2000.0,0.000164,2]
[406391866,1771861766837,-151.0,0.00016438,2]
[406391867,1771861766859,-151.0,0.00016438,2]
[406391868,1771861766881,-150.79126087,0.00016438,2]
[406391869,1771861766905,-3000.0,0.00016438,2]
[406391870,1771861766926,-1393.39696857,0.00016438,2]
[406391895,1771861807284,156.33,9.5e-05,2]
[406391900,1771861813164,1062.5,0.000156,120]
[406391929,1771861831579,-156.33,0.000104,2]
[406391931,1771861831589,-149.338248,0.00013273,2]
[406391934,1771861831600,-350.661752,0.00013273,2]
[406391935,1771861831611,-500.0,0.00013273,2]
[406391936,1771861831629,-500.0,0.00013273,2]
[406391937,1771861831640,-500.0,0.00013699,2]
[406391938,1771861831650,-500.0,0.00013699,2]
[406391939,1771861831660,-500.0,0.00013699,2]
[406391940,1771861831670,-500.0,0.00013699,2]
[406391941,1771861831680,-500.0,0.00013699,2]
[406391942,1771861831689,-500.0,0.00013699,2]
[406391944,1771861831699,-150.01,0.000137,2]
[406391946,1771861831709,-499.328248,0.00013821,2]
[406392035,1771861837841,-500.671752,0.00013821,2]
[406392036,1771861837851,-1000.0,0.00013821,2]
[406392037,1771861837861,-1000.0,0.00014247,2]
[406392038,1771861837871,-1000.0,0.00014247,2]
[406392039,1771861837882,-1000.0,0.00014247,2]
[406392040,1771861837892,-1000.0,0.00014247,2]
[406392041,1771861837902,-1000.0,0.00014247,2]
[406392042,1771861837912,-1000.0,0.00014247,2]
[406392043,1771861837922,-1500.0,0.00014368,2]
[406392045,1771861837931,-1500.0,0.00014368,2]
[406392046,1771861837941,-208.75446729,0.00014761,2]
[406392047,1771861837950,-183.26067836,0.00014795,2]
[406392048,1771861837960,-1500.0,0.00014795,2]
[406392049,1771861837970,-728.04913143,0.00014795,2]
[406392050,1771861837980,-1049.25965318,0.00014795,2]
[406392051,1771861838471,-450.74034682,0.00014795,2]
[406392052,1771861838481,-1500.0,0.00014795,2]
[406392053,1771861838492,-1500.0,0.00014795,2]
[406392054,1771861838502,-748.97646103,0.00014861,2]
[406392055,1771861838514,-2000.0,0.00014916,2]
[406392056,1771861838528,-2000.0,0.00014916,2]
[406392058,1771861838538,-2000.0,0.00015342,2]
[406392059,1771861838550,-2000.0,0.00015342,2]
[406392060,1771861838561,-2000.0,0.00015342,2]
[406392061,1771861838571,-2000.0,0.00015342,2]
[406392062,1771861838582,-2500.0,0.00015464,2]
[406392063,1771861838592,-158.53056558,0.00015464,2]
[406392064,1771861838604,-748.97646103,0.00015574,2]
[406392065,1771861838614,-300.0,0.00015711,2]
[406392066,1771861838624,-41435.707246,0.00015712,2]
[406392067,1771861838634,-2500.0,0.0001589,2]
[406392068,1771861838644,-2500.0,0.0001589,2]
[406392069,1771861838654,-779.24299252,0.0001589,2]
[406392070,1771861838664,-2500.0,0.0001589,2]
[406392071,1771861838673,-753.60139061,0.00016,2]
[406392072,1771861838683,-3000.0,0.00016012,2]
[406392073,1771861838693,-748.97646103,0.00016288,2]
[406392074,1771861838703,-3000.0,0.00016438,2]
[406392075,1771861838712,-3000.0,0.00016438,2]
[406392076,1771861838721,-3000.0,0.00016438,2]
[406392077,1771861838731,-595.16,0.000165,2]
[406392078,1771861838740,-3500.0,0.0001656,2]
[406392079,1771861838750,-625.5989328,0.0001656,2]
[406392080,1771861838762,-503.30482113,0.00016986,2]
[406392081,1771861838772,-1025.19331595,0.00016986,2]
[406392082,1771861838782,-3500.0,0.00016986,2]
[406392083,1771861838792,-748.97646103,0.00017001,2]
[406392084,1771861838802,-184.1928171,0.00017101,2]
[406392085,1771861838811,-90432.3218355,0.00017101,2]
[406392086,1771861838821,-1463.1577659,0.00017101,2]
[406392087,1771861838830,-184.1928171,0.00017101,2]
[406392088,1771861838840,-500.0,0.00017101,2]
[406392089,1771861838850,-4000.0,0.00017108,2]
[406392090,1771861838863,-420.0,0.00017183,2]
[406392091,1771861838873,-3280.0,0.000175,2]
[406392092,1771861838883,-4000.0,0.00017534,2]
[406392093,1771861838893,-2277.58201077,0.00017656,2]
[406392094,1771861838903,-258.0,0.00017695,2]
[406392095,1771861838913,-150.0,0.00017808,2]
[406392096,1771861838922,-500.0,0.000179,2]
[406392097,1771861838932,-269.97583404,0.00017998,2]
[406392098,1771861838942,-500.0,0.00017998,2]
[406392099,1771861838951,-500.0,0.00017998,2]
[406392100,1771861838961,-500.0,0.00017998,2]
[406392101,1771861839075,-155.15501791,0.00017998,2]
[406392102,1771861839085,-500.0,0.00017998,2]
[406392103,1771861839096,-500.0,0.00017998,2]
[406392104,1771861839106,-500.0,0.00017998,2]
[406392105,1771861839116,-500.0,0.00017999,2]
[406392106,1771861839126,-500.0,0.00017999,2]
[406392107,1771861839137,-500.0,0.00017999,2]
[406392108,1771861839148,-500.0,0.00017999,2]
[406392109,1771861839158,-500.0,0.00017999,2]
[406392110,1771861839168,-426.19312835,0.00017999,2]
[406392111,1771861839177,-500.0,0.00017999,2]
[406392112,1771861839186,-500.0,0.00017999,2]
[406392113,1771861839196,-500.0,0.00017999,2]
[406392114,1771861839206,-500.0,0.00017999,2]
[406392115,1771861839216,-53196.3382437,0.00018,2]
[406392116,1771861839225,-5000.0,0.00018,7]
[406392117,1771861839235,-4500.0,0.00018082,2]
[406392118,1771861839245,-250.0,0.00018356,2]
[406392119,1771861839255,-5000.0,0.0001863,2]
[406392120,1771861839268,-587.0,0.00018792,2]
[406392121,1771861839278,-345.96,0.00018799,4]
[406392122,1771861839288,-184.1928171,0.00018828,2]
[406392123,1771861839298,-350.0,0.00018904,2]
[406392124,1771861839307,-226.224234,0.00019178,2]
[406392125,1771861839316,-3624.48926624,0.00019178,2]
[406392126,1771861839326,-20178.1784537,0.00019279,2]
[406392127,1771861839336,-450.0,0.00019452,2]
[406392128,1771861839346,-285.0,0.00019695,2]
[406392129,1771861839356,-4502.3601898,0.00019765,2]
[406392130,1771861839365,-229.38542795,0.0002,120]
[406392131,1771861839375,-5000.0,0.0002,7]
[406392132,1771861839384,-409.11245023,0.0002,2]
[406392133,1771861839394,-151.75701313,0.0002,2]
[406392135,1771861839403,-151.0,0.000204,3]
[406392136,1771861839413,-637.5,0.0002041,120]
[406392137,1771861839422,-887.591238,0.00020548,2]
[406392138,1771861839431,-823.0,0.00020552,2]
[406392139,1771861839440,-184.1928171,0.00020555,2]
[406392140,1771861839450,-222.18903851,0.00020585,2]
[406392141,1771861839459,-371.53511153,0.00021345,4]
[406392142,1771861839470,-254.05896785,0.00021504,4]
[406392143,1771861839482,-265.09529094,0.00021513,4]
[406392144,1771861839491,-312.0,0.00021695,2]
[406392145,1771861839513,-260.57697602,0.00021883,4]
[406392146,1771861839525,-151.0,0.00021918,2]
[406392147,1771861839535,-151.0,0.00021918,2]
[406392148,1771861839545,-151.0,0.00021918,2]
[406392149,1771861839555,-151.0,0.00021918,2]
[406392150,1771861839566,-151.0,0.00021918,2]
[406392151,1771861839576,-151.0,0.00021918,2]
[406392152,1771861839586,-151.0,0.00021918,2]
[406392153,1771861839596,-151.0,0.00021918,2]
[406392154,1771861839606,-151.0,0.00021918,2]
[406392155,1771861839617,-151.0,0.00021918,2]
[406392156,1771861839626,-151.0,0.00021918,2]
[406392158,1771861839636,-151.0,0.00021918,2]
[406392160,1771861839646,-151.0,0.00021918,2]
[406392162,1771861839656,-151.0,0.00021918,2]
[406392164,1771861839665,-151.0,0.00021918,2]
[406392166,1771861839675,-151.0,0.00021918,2]
[406392168,1771861839685,-151.0,0.00021918,2]
[406392170,1771861839694,-227.366692,0.00021918,2]
[406392172,1771861839704,-150.0,0.00021918,2]
[406392174,1771861839714,-231.29822163,0.00021945,4]
[406392176,1771861839724,-151.0,0.00022,3]
[406392178,1771861839733,-184.1928171,0.00022282,2]
[406392180,1771861839743,-2000.0,0.00022386,7]
[406392182,1771861839752,-151.0,0.000224,6]
[406392184,1771861839763,-300.0,0.00022466,2]
[406392186,1771861839772,-1152.0,0.00022477,2]
[406392188,1771861839781,-461.43839503,0.00022725,2]
[406392190,1771861839792,-157.11901119,0.00023014,2]
[406392192,1771861839801,-201.96292321,0.00023069,4]
[406392194,1771861839811,-1016.23587141,0.00023279,4]
[406392196,1771861839821,-300.0,0.00023298,8]
[406392198,1771861839831,-151.0,0.000236,5]
[406392200,1771861839840,-151.0,0.000236,6]
[406392202,1771861839849,-339.0,0.00023695,2]
[406392204,1771861839859,-1613.0,0.00024582,2]
[406392206,1771861839868,-500.0,0.00024649,2]
[406392208,1771861839878,-500.0,0.00024649,2]